{"text_format":"3","workbook":"xlsx","n_sheets":6,"sheets":["Dashboard","Vendite","Ricavi","Costi","Imposte","Categorie"],"not_rendered":{"images":1,"defined_names":34},"read":"whole","date_system":"1900"}

{"sheet":"Dashboard","index":0,"n_rows":20,"n_cols":8,"rows_kept":20,"merged":[[0,2,0,4],[0,6,3,7],[5,1,5,7]]}
[null,"Rendiconto profitti e perdite","Per [mese o anno] che termina il [giorno-mese-anno]"]
[null,"Nome società","Valori espressi in migliaia"]
[null,"Margine lordo corrente  [L/J]",{"$f":"IFERROR(IF(Totale_Utile_Lordo=0,\"-\",Totale_Utile_Lordo/Totale_Ricavi_Vendite),\"-\")","v":"-"}]
[null,"Redditività delle vendite corrente [T/J]",{"$f":"IFERROR(IF(Utile_Netto=0,\"-\",Utile_Netto/Totale_Ricavi_Vendite),\"-\")","v":"-"}]
[]
[null,"Non modificare le categorie in questo foglio di lavoro per evitare di danneggiare le formule. Usare il foglio di lavoro Categorie per aggiungere categorie e aggiornare i fogli di lavoro corrispondenti con le voci. Questo foglio di lavoro verrà aggiornato automaticamente."]
[null,"Riepilogo","Totale periodo precedente","Budget totale","Totale periodo\ncorrente","Totale periodo corrente come % delle vendite","Variazione % totale dal periodo precedente","Variazione % totale dal budget"]
[null,"Totale ricavi delle vendite  [J]",{"$f":"SUMIFS(RicaviVendite[Periodo precedente],RicaviVendite[Tipo di ricavo],\"Ricavi delle vendite\")","v":0},{"$f":"SUMIFS(RicaviVendite[Budget],RicaviVendite[Tipo di ricavo],\"Ricavi delle vendite\")","v":0},{"$f":"SUMIFS(RicaviVendite[Periodo corrente],RicaviVendite[Tipo di ricavo],\"Ricavi delle vendite\")","v":0},{"$f":"SUMIFS(RicaviVendite[Periodo corrente come % delle vendite],RicaviVendite[Tipo di ricavo],\"Ricavi delle vendite\")","v":{"v":0,"d":"0.00%"}},{"$f":"SUMIFS(RicaviVendite[Variazione % dal periodo precedente],RicaviVendite[Tipo di ricavo],\"Ricavi delle vendite\")","v":{"v":0,"d":"0.00%"}},{"$f":"SUMIFS(RicaviVendite[Variazione % dal budget],RicaviVendite[Tipo di ricavo],\"Ricavi delle vendite\")","v":{"v":0,"d":"0.00%"}}]
[null,"Costo totale del venduto  [K]",{"$f":"SUMIFS(RicaviVendite[Periodo precedente],RicaviVendite[Tipo di ricavo],\"Costo del venduto\")","v":0},{"$f":"SUMIFS(RicaviVendite[Budget],RicaviVendite[Tipo di ricavo],\"Costo del venduto\")","v":0},{"$f":"SUMIFS(RicaviVendite[Periodo corrente],RicaviVendite[Tipo di ricavo],\"Costo del venduto\")","v":0},{"$f":"SUMIFS(RicaviVendite[Periodo corrente come % delle vendite],RicaviVendite[Tipo di ricavo],\"Costo del venduto\")","v":{"v":0,"d":"0.00%"}},{"$f":"SUMIFS(RicaviVendite[Variazione % dal periodo precedente],RicaviVendite[Tipo di ricavo],\"Costo del venduto\")","v":{"v":0,"d":"0.00%"}},{"$f":"SUMIFS(RicaviVendite[Variazione % dal budget],RicaviVendite[Tipo di ricavo],\"Costo del venduto\")","v":{"v":0,"d":"0.00%"}}]
[null,"Totale spese di vendita e marketing  [M]",{"$f":"SUMIFS(CostiGestione[Periodo precedente],CostiGestione[Tipo di costo],\"Vendite e marketing\")","v":0},{"$f":"SUMIFS(CostiGestione[Budget],CostiGestione[Tipo di costo],\"Vendite e marketing\")","v":0},{"$f":"SUMIFS(CostiGestione[Periodo corrente],CostiGestione[Tipo di costo],\"Vendite e marketing\")","v":0},{"$f":"SUMIFS(CostiGestione[Periodo corrente come % delle vendite],CostiGestione[Tipo di costo],\"Vendite e marketing\")","v":{"v":0,"d":"0.00%"}},{"$f":"SUMIFS(CostiGestione[Variazione % dal periodo precedente],CostiGestione[Tipo di costo],\"Vendite e marketing\")","v":{"v":0,"d":"0.00%"}},{"$f":"SUMIFS(CostiGestione[Variazione % dal budget],CostiGestione[Tipo di costo],\"Vendite e marketing\")","v":{"v":0,"d":"0.00%"}}]
[null,"Totale spese di ricerca e sviluppo  [N]",{"$f":"SUMIFS(CostiGestione[Periodo precedente],CostiGestione[Tipo di costo],\"Ricerca e sviluppo\")","v":0},{"$f":"SUMIFS(CostiGestione[Budget],CostiGestione[Tipo di costo],\"Ricerca e sviluppo\")","v":0},{"$f":"SUMIFS(CostiGestione[Periodo corrente],CostiGestione[Tipo di costo],\"Ricerca e sviluppo\")","v":0},{"$f":"SUMIFS(CostiGestione[Periodo corrente come % delle vendite],CostiGestione[Tipo di costo],\"Ricerca e sviluppo\")","v":{"v":0,"d":"0.00%"}},{"$f":"SUMIFS(CostiGestione[Variazione % dal periodo precedente],CostiGestione[Tipo di costo],\"Ricerca e sviluppo\")","v":{"v":0,"d":"0.00%"}},{"$f":"SUMIFS(CostiGestione[Variazione % dal budget],CostiGestione[Tipo di costo],\"Ricerca e sviluppo\")","v":{"v":0,"d":"0.00%"}}]
[null,"Totale spese generali e amministrative  [O]",{"$f":"SUMIFS(CostiGestione[Periodo precedente],CostiGestione[Tipo di costo],\"Generali e di amministrazione\")","v":0},{"$f":"SUMIFS(CostiGestione[Budget],CostiGestione[Tipo di costo],\"Generali e di amministrazione\")","v":0},{"$f":"SUMIFS(CostiGestione[Periodo corrente],CostiGestione[Tipo di costo],\"Generali e di amministrazione\")","v":0},{"$f":"SUMIFS(CostiGestione[Periodo corrente come % delle vendite],CostiGestione[Tipo di costo],\"Generali e di amministrazione\")","v":{"v":0,"d":"0.00%"}},{"$f":"SUMIFS(CostiGestione[Variazione % dal periodo precedente],CostiGestione[Tipo di costo],\"Generali e di amministrazione\")","v":{"v":0,"d":"0.00%"}},{"$f":"SUMIFS(CostiGestione[Variazione % dal budget],CostiGestione[Tipo di costo],\"Generali e di amministrazione\")","v":{"v":0,"d":"0.00%"}}]
[null,"Totale altri costi di gestione [P]",{"$f":"CostiGestione[[#Totals],[Periodo precedente]]-SUM(C10:C12)","v":0},{"$f":"CostiGestione[[#Totals],[Budget]]-SUM(D10:D12)","v":0},{"$f":"CostiGestione[[#Totals],[Periodo corrente]]-SUM(E10:E12)","v":0},{"$f":"CostiGestione[[#Totals],[Periodo corrente come % delle vendite]]-SUM(F10:F12)","v":{"v":0,"d":"0.00%"}},{"$f":"CostiGestione[[#Totals],[Variazione % dal periodo precedente]]-SUM(G10:G12)","v":{"v":0,"d":"0.00%"}},{"$f":"CostiGestione[[#Totals],[Variazione % dal budget]]-SUM(H10:H12)","v":{"v":0,"d":"0.00%"}}]
[null,"Altri ricavi  [S]",{"$f":"Entrate[[#Totals],[Periodo precedente]]","v":0},{"$f":"Entrate[[#Totals],[Budget]]","v":0},{"$f":"Entrate[[#Totals],[Periodo corrente]]","v":0},{"$f":"Entrate[[#Totals],[Periodo corrente come % delle vendite]]","v":{"v":0,"d":"0.00%"}},{"$f":"Entrate[[#Totals],[Variazione % dal periodo precedente]]","v":{"v":0,"d":"0.00%"}},{"$f":"Entrate[[#Totals],[Variazione % dal budget]]","v":{"v":0,"d":"0.00%"}}]
[null,"Totale imposte  [T]",{"$f":"Imposte[[#Totals],[Periodo precedente]]","v":0},{"$f":"Imposte[[#Totals],[Budget]]","v":0},{"$f":"Imposte[[#Totals],[Periodo corrente]]","v":0},{"$f":"Imposte[[#Totals],[Periodo corrente come % delle vendite]]","v":{"v":0,"d":"0.00%"}},{"$f":"Imposte[[#Totals],[Variazione % dal periodo precedente]]","v":{"v":0,"d":"0.00%"}},{"$f":"Imposte[[#Totals],[Variazione % dal budget]]","v":{"v":0,"d":"0.00%"}}]
[]
[null,"Utile lordo  [L=J-K]",{"$f":"IFERROR(C8-C9,\"-\")","v":0},{"$f":"IFERROR(D8-D9,\"-\")","v":0},{"$f":"IFERROR(Totale_Ricavi_Vendite-Costo_Totale_Venduto,\"-\")","v":0},{"$f":"IFERROR(IF(Totale_Ricavi_Vendite=0,\"0.00%\",Totale_Utile_Lordo/Totale_Ricavi_Vendite),\"-\")","v":"0.00%"},{"$f":"IFERROR(IF(C17=Totale_Utile_Lordo,0,IF(Totale_Utile_Lordo>C17,ABS((Totale_Utile_Lordo/C17)-1),IF(AND(Totale_Utile_Lordo<C17,C17<0),-((Totale_Utile_Lordo/C17)-1),(Totale_Utile_Lordo/C17)-1))),\"-\")","v":{"v":0,"d":"0.00%"}},{"$f":"IFERROR(IF(D17=Totale_Utile_Lordo,0,IF(Totale_Utile_Lordo>D17,ABS((Totale_Utile_Lordo/D17)-1),IF(AND(Totale_Utile_Lordo<D17,D17<0),-((Totale_Utile_Lordo/D17)-1),(Totale_Utile_Lordo/D17)-1))),\"-\")","v":{"v":0,"d":"0.00%"}}]
[null,"Totale costi di gestione  [Q=M+N+O+P]",{"$f":"IFERROR(C10+C11+C12+C13,\"-\")","v":0},{"$f":"IFERROR(D10+D11+D12+D13,\"-\")","v":0},{"$f":"IFERROR(Totale_Vendite_e_Marketing+Totale_Ricerca_e_Sviluppo+Totale_Generali_e_Amministrazione+Totale_Altri_Costi,\"-\")","v":0},{"$f":"IFERROR(IF(Totale_Ricavi_Vendite=0,\"0.00%\",Totale_Costi_Gestione/Totale_Ricavi_Vendite),\"-\")","v":"0.00%"},{"$f":"IFERROR(IF(C18=Totale_Costi_Gestione,0,IF(Totale_Costi_Gestione>C18,ABS((Totale_Costi_Gestione/C18)-1),IF(AND(Totale_Costi_Gestione<C18,C18<0),-((Totale_Costi_Gestione/C18)-1),(Totale_Costi_Gestione/C18)-1))),\"-\")","v":{"v":0,"d":"0.00%"}},{"$f":"IFERROR(IF(D18=Totale_Costi_Gestione,0,IF(Totale_Costi_Gestione>D18,ABS((Totale_Costi_Gestione/D18)-1),IF(AND(Totale_Costi_Gestione<D18,D18<0),-((Totale_Costi_Gestione/D18)-1),(Totale_Costi_Gestione/D18)-1))),\"-\")","v":{"v":0,"d":"0.00%"}}]
[null,"Ricavi della gestione  [R=L-Q]",{"$f":"IFERROR(C17-C18,\"-\")","v":0},{"$f":"IFERROR(D17-D18,\"-\")","v":0},{"$f":"IFERROR(Totale_Utile_Lordo-Totale_Costi_Gestione,\"-\")","v":0},{"$f":"IFERROR(IF(Totale_Ricavi_Vendite=0,\"0.00%\",Totale_Ricavi_Gestione/Totale_Ricavi_Vendite),\"-\")","v":"0.00%"},{"$f":"IFERROR(IF(C19=Totale_Ricavi_Gestione,0,IF(Totale_Ricavi_Gestione>C19,ABS((Totale_Ricavi_Gestione/C19)-1),IF(AND(Totale_Ricavi_Gestione<C19,C19<0),-((Totale_Ricavi_Gestione/C19)-1),(Totale_Ricavi_Gestione/C19)-1))),\"-\")","v":{"v":0,"d":"0.00%"}},{"$f":"IFERROR(IF(D19=Totale_Ricavi_Gestione,0,IF(Totale_Ricavi_Gestione>D19,ABS((Totale_Ricavi_Gestione/D19)-1),IF(AND(Totale_Ricavi_Gestione<D19,D19<0),-((Totale_Ricavi_Gestione/D19)-1),(Totale_Ricavi_Gestione/D19)-1))),\"-\")","v":{"v":0,"d":"0.00%"}}]
[null,"Utile netto  [U=R+S-T]",{"$f":"IFERROR(C19+C14-C15,\"-\")","v":0},{"$f":"IFERROR(D19+D14-D15,\"-\")","v":0},{"$f":"Totale_Ricavi_Gestione+Totale_Altri_Ricavi-Totale_Imposte","v":0},{"$f":"IFERROR(IF(Totale_Ricavi_Vendite=0,\"0.00%\",Utile_Netto/Totale_Ricavi_Vendite),\"-\")","v":"0.00%"},{"$f":"IFERROR(IF(C20=Utile_Netto,0,IF(Utile_Netto>C20,ABS((Utile_Netto/C20)-1),IF(AND(Utile_Netto<C20,C20<0),-((Utile_Netto/C20)-1),(Utile_Netto/C20)-1))),\"-\")","v":{"v":0,"d":"0.00%"}},{"$f":"IFERROR(IF(D20=Utile_Netto,0,IF(Utile_Netto>D20,ABS((Utile_Netto/D20)-1),IF(AND(Utile_Netto<D20,D20<0),-((Utile_Netto/D20)-1),(Utile_Netto/D20)-1))),\"-\")","v":{"v":0,"d":"0.00%"}}]

{"sheet":"Vendite","index":1,"n_rows":13,"n_cols":9,"rows_kept":13,"merged":[[0,7,2,8]]}
[null,{"$f":"Titolo_CartellaLavoro","v":"Rendiconto profitti e perdite"}]
[null,{"$f":"Nome_Società","v":"Nome società"},"Valori espressi in migliaia"]
[null,"Ricavi delle vendite",{"$f":"IFERROR(Ricavi_Vendite,\"-\")","v":0}]
[null,"Tipo di ricavo","Descrizione","Periodo precedente","Budget","Periodo corrente","Periodo corrente come % delle vendite","Variazione % dal periodo precedente","Variazione % dal budget"]
[null,"Ricavi delle vendite","Prodotto/servizio 1",{"$nulls":3},{"$f":"IFERROR(IF(RicaviVendite[[#Totals],[Periodo corrente]]=0,\"-\",RicaviVendite[[#This Row],[Periodo corrente]]/Ricavi_Vendite),\"-\")","v":"-"},{"$f":"IFERROR(IF(RicaviVendite[[#This Row],[Periodo precedente]]=RicaviVendite[[#This Row],[Periodo corrente]],0,IF(RicaviVendite[[#This Row],[Periodo corrente]]>RicaviVendite[[#This Row],[Periodo precedente]],ABS((RicaviVendite[[#This Row],[Periodo corrente]]/RicaviVendite[[#This Row],[Periodo precedente]])-1),IF(AND(RicaviVendite[[#This Row],[Periodo corrente]]<RicaviVendite[[#This Row],[Periodo precedente]],RicaviVendite[[#This Row],[Periodo precedente]]<0),-((RicaviVendite[[#This Row],[Periodo corrente]]/RicaviVendite[[#This Row],[Periodo precedente]])-1),(RicaviVendite[[#This Row],[Periodo corrente]]/RicaviVendite[[#This Row],[Periodo precedente]])-1))),\"-\")","v":{"v":0,"d":"0.00%"}},{"$f":"IFERROR(IF(RicaviVendite[[#This Row],[Budget]]=RicaviVendite[[#This Row],[Periodo corrente]],0,IF(RicaviVendite[[#This Row],[Periodo corrente]]>RicaviVendite[[#This Row],[Budget]],ABS((RicaviVendite[[#This Row],[Periodo corrente]]/RicaviVendite[[#This Row],[Budget]])-1),IF(AND(RicaviVendite[[#This Row],[Periodo corrente]]<RicaviVendite[[#This Row],[Budget]],RicaviVendite[[#This Row],[Budget]]<0),-((RicaviVendite[[#This Row],[Periodo corrente]]/RicaviVendite[[#This Row],[Budget]])-1),(RicaviVendite[[#This Row],[Periodo corrente]]/RicaviVendite[[#This Row],[Budget]])-1))),\"-\")","v":{"v":0,"d":"0.00%"}}]
[null,"Ricavi delle vendite","Prodotto/servizio 2",{"$nulls":3},{"$f":"IFERROR(IF(RicaviVendite[[#Totals],[Periodo corrente]]=0,\"-\",RicaviVendite[[#This Row],[Periodo corrente]]/Ricavi_Vendite),\"-\")","v":"-"},{"$f":"IFERROR(IF(RicaviVendite[[#This Row],[Periodo precedente]]=RicaviVendite[[#This Row],[Periodo corrente]],0,IF(RicaviVendite[[#This Row],[Periodo corrente]]>RicaviVendite[[#This Row],[Periodo precedente]],ABS((RicaviVendite[[#This Row],[Periodo corrente]]/RicaviVendite[[#This Row],[Periodo precedente]])-1),IF(AND(RicaviVendite[[#This Row],[Periodo corrente]]<RicaviVendite[[#This Row],[Periodo precedente]],RicaviVendite[[#This Row],[Periodo precedente]]<0),-((RicaviVendite[[#This Row],[Periodo corrente]]/RicaviVendite[[#This Row],[Periodo precedente]])-1),(RicaviVendite[[#This Row],[Periodo corrente]]/RicaviVendite[[#This Row],[Periodo precedente]])-1))),\"-\")","v":{"v":0,"d":"0.00%"}},{"$f":"IFERROR(IF(RicaviVendite[[#This Row],[Budget]]=RicaviVendite[[#This Row],[Periodo corrente]],0,IF(RicaviVendite[[#This Row],[Periodo corrente]]>RicaviVendite[[#This Row],[Budget]],ABS((RicaviVendite[[#This Row],[Periodo corrente]]/RicaviVendite[[#This Row],[Budget]])-1),IF(AND(RicaviVendite[[#This Row],[Periodo corrente]]<RicaviVendite[[#This Row],[Budget]],RicaviVendite[[#This Row],[Budget]]<0),-((RicaviVendite[[#This Row],[Periodo corrente]]/RicaviVendite[[#This Row],[Budget]])-1),(RicaviVendite[[#This Row],[Periodo corrente]]/RicaviVendite[[#This Row],[Budget]])-1))),\"-\")","v":{"v":0,"d":"0.00%"}}]
[null,"Ricavi delle vendite","Prodotto/servizio 3",{"$nulls":3},{"$f":"IFERROR(IF(RicaviVendite[[#Totals],[Periodo corrente]]=0,\"-\",RicaviVendite[[#This Row],[Periodo corrente]]/Ricavi_Vendite),\"-\")","v":"-"},{"$f":"IFERROR(IF(RicaviVendite[[#This Row],[Periodo precedente]]=RicaviVendite[[#This Row],[Periodo corrente]],0,IF(RicaviVendite[[#This Row],[Periodo corrente]]>RicaviVendite[[#This Row],[Periodo precedente]],ABS((RicaviVendite[[#This Row],[Periodo corrente]]/RicaviVendite[[#This Row],[Periodo precedente]])-1),IF(AND(RicaviVendite[[#This Row],[Periodo corrente]]<RicaviVendite[[#This Row],[Periodo precedente]],RicaviVendite[[#This Row],[Periodo precedente]]<0),-((RicaviVendite[[#This Row],[Periodo corrente]]/RicaviVendite[[#This Row],[Periodo precedente]])-1),(RicaviVendite[[#This Row],[Periodo corrente]]/RicaviVendite[[#This Row],[Periodo precedente]])-1))),\"-\")","v":{"v":0,"d":"0.00%"}},{"$f":"IFERROR(IF(RicaviVendite[[#This Row],[Budget]]=RicaviVendite[[#This Row],[Periodo corrente]],0,IF(RicaviVendite[[#This Row],[Periodo corrente]]>RicaviVendite[[#This Row],[Budget]],ABS((RicaviVendite[[#This Row],[Periodo corrente]]/RicaviVendite[[#This Row],[Budget]])-1),IF(AND(RicaviVendite[[#This Row],[Periodo corrente]]<RicaviVendite[[#This Row],[Budget]],RicaviVendite[[#This Row],[Budget]]<0),-((RicaviVendite[[#This Row],[Periodo corrente]]/RicaviVendite[[#This Row],[Budget]])-1),(RicaviVendite[[#This Row],[Periodo corrente]]/RicaviVendite[[#This Row],[Budget]])-1))),\"-\")","v":{"v":0,"d":"0.00%"}}]
[null,"Ricavi delle vendite","Prodotto/servizio 4",{"$nulls":3},{"$f":"IFERROR(IF(RicaviVendite[[#Totals],[Periodo corrente]]=0,\"-\",RicaviVendite[[#This Row],[Periodo corrente]]/Ricavi_Vendite),\"-\")","v":"-"},{"$f":"IFERROR(IF(RicaviVendite[[#This Row],[Periodo precedente]]=RicaviVendite[[#This Row],[Periodo corrente]],0,IF(RicaviVendite[[#This Row],[Periodo corrente]]>RicaviVendite[[#This Row],[Periodo precedente]],ABS((RicaviVendite[[#This Row],[Periodo corrente]]/RicaviVendite[[#This Row],[Periodo precedente]])-1),IF(AND(RicaviVendite[[#This Row],[Periodo corrente]]<RicaviVendite[[#This Row],[Periodo precedente]],RicaviVendite[[#This Row],[Periodo precedente]]<0),-((RicaviVendite[[#This Row],[Periodo corrente]]/RicaviVendite[[#This Row],[Periodo precedente]])-1),(RicaviVendite[[#This Row],[Periodo corrente]]/RicaviVendite[[#This Row],[Periodo precedente]])-1))),\"-\")","v":{"v":0,"d":"0.00%"}},{"$f":"IFERROR(IF(RicaviVendite[[#This Row],[Budget]]=RicaviVendite[[#This Row],[Periodo corrente]],0,IF(RicaviVendite[[#This Row],[Periodo corrente]]>RicaviVendite[[#This Row],[Budget]],ABS((RicaviVendite[[#This Row],[Periodo corrente]]/RicaviVendite[[#This Row],[Budget]])-1),IF(AND(RicaviVendite[[#This Row],[Periodo corrente]]<RicaviVendite[[#This Row],[Budget]],RicaviVendite[[#This Row],[Budget]]<0),-((RicaviVendite[[#This Row],[Periodo corrente]]/RicaviVendite[[#This Row],[Budget]])-1),(RicaviVendite[[#This Row],[Periodo corrente]]/RicaviVendite[[#This Row],[Budget]])-1))),\"-\")","v":{"v":0,"d":"0.00%"}}]
[null,"Costo del venduto","Prodotto/servizio 1",{"$nulls":3},{"$f":"IFERROR(IF(RicaviVendite[[#Totals],[Periodo corrente]]=0,\"-\",RicaviVendite[[#This Row],[Periodo corrente]]/Ricavi_Vendite),\"-\")","v":"-"},{"$f":"IFERROR(IF(RicaviVendite[[#This Row],[Periodo precedente]]=RicaviVendite[[#This Row],[Periodo corrente]],0,IF(RicaviVendite[[#This Row],[Periodo corrente]]>RicaviVendite[[#This Row],[Periodo precedente]],ABS((RicaviVendite[[#This Row],[Periodo corrente]]/RicaviVendite[[#This Row],[Periodo precedente]])-1),IF(AND(RicaviVendite[[#This Row],[Periodo corrente]]<RicaviVendite[[#This Row],[Periodo precedente]],RicaviVendite[[#This Row],[Periodo precedente]]<0),-((RicaviVendite[[#This Row],[Periodo corrente]]/RicaviVendite[[#This Row],[Periodo precedente]])-1),(RicaviVendite[[#This Row],[Periodo corrente]]/RicaviVendite[[#This Row],[Periodo precedente]])-1))),\"-\")","v":{"v":0,"d":"0.00%"}},{"$f":"IFERROR(IF(RicaviVendite[[#This Row],[Budget]]=RicaviVendite[[#This Row],[Periodo corrente]],0,IF(RicaviVendite[[#This Row],[Periodo corrente]]>RicaviVendite[[#This Row],[Budget]],ABS((RicaviVendite[[#This Row],[Periodo corrente]]/RicaviVendite[[#This Row],[Budget]])-1),IF(AND(RicaviVendite[[#This Row],[Periodo corrente]]<RicaviVendite[[#This Row],[Budget]],RicaviVendite[[#This Row],[Budget]]<0),-((RicaviVendite[[#This Row],[Periodo corrente]]/RicaviVendite[[#This Row],[Budget]])-1),(RicaviVendite[[#This Row],[Periodo corrente]]/RicaviVendite[[#This Row],[Budget]])-1))),\"-\")","v":{"v":0,"d":"0.00%"}}]
[null,"Costo del venduto","Prodotto/servizio 2",{"$nulls":3},{"$f":"IFERROR(IF(RicaviVendite[[#Totals],[Periodo corrente]]=0,\"-\",RicaviVendite[[#This Row],[Periodo corrente]]/Ricavi_Vendite),\"-\")","v":"-"},{"$f":"IFERROR(IF(RicaviVendite[[#This Row],[Periodo precedente]]=RicaviVendite[[#This Row],[Periodo corrente]],0,IF(RicaviVendite[[#This Row],[Periodo corrente]]>RicaviVendite[[#This Row],[Periodo precedente]],ABS((RicaviVendite[[#This Row],[Periodo corrente]]/RicaviVendite[[#This Row],[Periodo precedente]])-1),IF(AND(RicaviVendite[[#This Row],[Periodo corrente]]<RicaviVendite[[#This Row],[Periodo precedente]],RicaviVendite[[#This Row],[Periodo precedente]]<0),-((RicaviVendite[[#This Row],[Periodo corrente]]/RicaviVendite[[#This Row],[Periodo precedente]])-1),(RicaviVendite[[#This Row],[Periodo corrente]]/RicaviVendite[[#This Row],[Periodo precedente]])-1))),\"-\")","v":{"v":0,"d":"0.00%"}},{"$f":"IFERROR(IF(RicaviVendite[[#This Row],[Budget]]=RicaviVendite[[#This Row],[Periodo corrente]],0,IF(RicaviVendite[[#This Row],[Periodo corrente]]>RicaviVendite[[#This Row],[Budget]],ABS((RicaviVendite[[#This Row],[Periodo corrente]]/RicaviVendite[[#This Row],[Budget]])-1),IF(AND(RicaviVendite[[#This Row],[Periodo corrente]]<RicaviVendite[[#This Row],[Budget]],RicaviVendite[[#This Row],[Budget]]<0),-((RicaviVendite[[#This Row],[Periodo corrente]]/RicaviVendite[[#This Row],[Budget]])-1),(RicaviVendite[[#This Row],[Periodo corrente]]/RicaviVendite[[#This Row],[Budget]])-1))),\"-\")","v":{"v":0,"d":"0.00%"}}]
[null,"Costo del venduto","Prodotto/servizio 3",{"$nulls":3},{"$f":"IFERROR(IF(RicaviVendite[[#Totals],[Periodo corrente]]=0,\"-\",RicaviVendite[[#This Row],[Periodo corrente]]/Ricavi_Vendite),\"-\")","v":"-"},{"$f":"IFERROR(IF(RicaviVendite[[#This Row],[Periodo precedente]]=RicaviVendite[[#This Row],[Periodo corrente]],0,IF(RicaviVendite[[#This Row],[Periodo corrente]]>RicaviVendite[[#This Row],[Periodo precedente]],ABS((RicaviVendite[[#This Row],[Periodo corrente]]/RicaviVendite[[#This Row],[Periodo precedente]])-1),IF(AND(RicaviVendite[[#This Row],[Periodo corrente]]<RicaviVendite[[#This Row],[Periodo precedente]],RicaviVendite[[#This Row],[Periodo precedente]]<0),-((RicaviVendite[[#This Row],[Periodo corrente]]/RicaviVendite[[#This Row],[Periodo precedente]])-1),(RicaviVendite[[#This Row],[Periodo corrente]]/RicaviVendite[[#This Row],[Periodo precedente]])-1))),\"-\")","v":{"v":0,"d":"0.00%"}},{"$f":"IFERROR(IF(RicaviVendite[[#This Row],[Budget]]=RicaviVendite[[#This Row],[Periodo corrente]],0,IF(RicaviVendite[[#This Row],[Periodo corrente]]>RicaviVendite[[#This Row],[Budget]],ABS((RicaviVendite[[#This Row],[Periodo corrente]]/RicaviVendite[[#This Row],[Budget]])-1),IF(AND(RicaviVendite[[#This Row],[Periodo corrente]]<RicaviVendite[[#This Row],[Budget]],RicaviVendite[[#This Row],[Budget]]<0),-((RicaviVendite[[#This Row],[Periodo corrente]]/RicaviVendite[[#This Row],[Budget]])-1),(RicaviVendite[[#This Row],[Periodo corrente]]/RicaviVendite[[#This Row],[Budget]])-1))),\"-\")","v":{"v":0,"d":"0.00%"}}]
[null,"Costo del venduto","Prodotto/servizio 4",{"$nulls":3},{"$f":"IFERROR(IF(RicaviVendite[[#Totals],[Periodo corrente]]=0,\"-\",RicaviVendite[[#This Row],[Periodo corrente]]/Ricavi_Vendite),\"-\")","v":"-"},{"$f":"IFERROR(IF(RicaviVendite[[#This Row],[Periodo precedente]]=RicaviVendite[[#This Row],[Periodo corrente]],0,IF(RicaviVendite[[#This Row],[Periodo corrente]]>RicaviVendite[[#This Row],[Periodo precedente]],ABS((RicaviVendite[[#This Row],[Periodo corrente]]/RicaviVendite[[#This Row],[Periodo precedente]])-1),IF(AND(RicaviVendite[[#This Row],[Periodo corrente]]<RicaviVendite[[#This Row],[Periodo precedente]],RicaviVendite[[#This Row],[Periodo precedente]]<0),-((RicaviVendite[[#This Row],[Periodo corrente]]/RicaviVendite[[#This Row],[Periodo precedente]])-1),(RicaviVendite[[#This Row],[Periodo corrente]]/RicaviVendite[[#This Row],[Periodo precedente]])-1))),\"-\")","v":{"v":0,"d":"0.00%"}},{"$f":"IFERROR(IF(RicaviVendite[[#This Row],[Budget]]=RicaviVendite[[#This Row],[Periodo corrente]],0,IF(RicaviVendite[[#This Row],[Periodo corrente]]>RicaviVendite[[#This Row],[Budget]],ABS((RicaviVendite[[#This Row],[Periodo corrente]]/RicaviVendite[[#This Row],[Budget]])-1),IF(AND(RicaviVendite[[#This Row],[Periodo corrente]]<RicaviVendite[[#This Row],[Budget]],RicaviVendite[[#This Row],[Budget]]<0),-((RicaviVendite[[#This Row],[Periodo corrente]]/RicaviVendite[[#This Row],[Budget]])-1),(RicaviVendite[[#This Row],[Periodo corrente]]/RicaviVendite[[#This Row],[Budget]])-1))),\"-\")","v":{"v":0,"d":"0.00%"}}]
[null,"Totale ricavi delle vendite",null,{"$f":"SUBTOTAL(109,RicaviVendite[Periodo precedente])","v":0},{"$f":"SUBTOTAL(109,RicaviVendite[Budget])","v":0},{"$f":"SUBTOTAL(109,RicaviVendite[Periodo corrente])","v":0},{"$f":"SUBTOTAL(109,RicaviVendite[Periodo corrente come % delle vendite])","v":{"v":0,"d":"0.00%"}},{"$f":"SUBTOTAL(109,RicaviVendite[Variazione % dal periodo precedente])","v":{"v":0,"d":"0.00%"}},{"$f":"SUBTOTAL(109,RicaviVendite[Variazione % dal budget])","v":{"v":0,"d":"0.00%"}}]

{"sheet":"Ricavi","index":2,"n_rows":7,"n_cols":9,"rows_kept":7,"merged":[[0,7,2,8]]}
[null,{"$f":"Titolo_CartellaLavoro","v":"Rendiconto profitti e perdite"}]
[null,{"$f":"Nome_Società","v":"Nome società"},"Valori espressi in migliaia"]
[null,"Ricavi",{"$f":"IFERROR(Entrate[[#Totals],[Periodo corrente]],\"-\")","v":0}]
[null,"Tipo di provento","Descrizione","Periodo precedente","Budget","Periodo corrente","Periodo corrente come % delle vendite","Variazione % dal periodo precedente","Variazione % dal budget"]
[null,"Ricavi","Altri ricavi",{"$nulls":3},{"$f":"IFERROR(IF(Ricavi_Vendite=0,\"-\",Entrate[[#This Row],[Periodo corrente]]/Ricavi_Vendite),\"-\")","v":"-"},{"$f":"IFERROR(IF(Entrate[[#This Row],[Periodo precedente]]=Entrate[[#This Row],[Periodo corrente]],0,IF(Entrate[[#This Row],[Periodo corrente]]>Entrate[[#This Row],[Periodo precedente]],ABS((Entrate[[#This Row],[Periodo corrente]]/Entrate[[#This Row],[Periodo precedente]])-1),IF(AND(Entrate[[#This Row],[Periodo corrente]]<Entrate[[#This Row],[Periodo precedente]],Entrate[[#This Row],[Periodo precedente]]<0),-((Entrate[[#This Row],[Periodo corrente]]/Entrate[[#This Row],[Periodo precedente]])-1),(Entrate[[#This Row],[Periodo corrente]]/Entrate[[#This Row],[Periodo precedente]])-1))),\"-\")","v":{"v":0,"d":"0.00%"}},{"$f":"IFERROR(IF(Entrate[[#This Row],[Budget]]=Entrate[[#This Row],[Periodo corrente]],0,IF(Entrate[[#This Row],[Periodo corrente]]>Entrate[[#This Row],[Budget]],ABS((Entrate[[#This Row],[Periodo corrente]]/Entrate[[#This Row],[Budget]])-1),IF(AND(Entrate[[#This Row],[Periodo corrente]]<Entrate[[#This Row],[Budget]],Entrate[[#This Row],[Budget]]<0),-((Entrate[[#This Row],[Periodo corrente]]/Entrate[[#This Row],[Budget]])-1),(Entrate[[#This Row],[Periodo corrente]]/Entrate[[#This Row],[Budget]])-1))),\"-\")","v":{"v":0,"d":"0.00%"}}]
[{"$nulls":6},{"$f":"IFERROR(IF(Ricavi_Vendite=0,\"-\",Entrate[[#This Row],[Periodo corrente]]/Ricavi_Vendite),\"-\")","v":"-"},{"$f":"IFERROR(IF(Entrate[[#This Row],[Periodo precedente]]=Entrate[[#This Row],[Periodo corrente]],0,IF(Entrate[[#This Row],[Periodo corrente]]>Entrate[[#This Row],[Periodo precedente]],ABS((Entrate[[#This Row],[Periodo corrente]]/Entrate[[#This Row],[Periodo precedente]])-1),IF(AND(Entrate[[#This Row],[Periodo corrente]]<Entrate[[#This Row],[Periodo precedente]],Entrate[[#This Row],[Periodo precedente]]<0),-((Entrate[[#This Row],[Periodo corrente]]/Entrate[[#This Row],[Periodo precedente]])-1),(Entrate[[#This Row],[Periodo corrente]]/Entrate[[#This Row],[Periodo precedente]])-1))),\"-\")","v":{"v":0,"d":"0.00%"}},{"$f":"IFERROR(IF(Entrate[[#This Row],[Budget]]=Entrate[[#This Row],[Periodo corrente]],0,IF(Entrate[[#This Row],[Periodo corrente]]>Entrate[[#This Row],[Budget]],ABS((Entrate[[#This Row],[Periodo corrente]]/Entrate[[#This Row],[Budget]])-1),IF(AND(Entrate[[#This Row],[Periodo corrente]]<Entrate[[#This Row],[Budget]],Entrate[[#This Row],[Budget]]<0),-((Entrate[[#This Row],[Periodo corrente]]/Entrate[[#This Row],[Budget]])-1),(Entrate[[#This Row],[Periodo corrente]]/Entrate[[#This Row],[Budget]])-1))),\"-\")","v":{"v":0,"d":"0.00%"}}]
[null,"Totale ricavi delle vendite",null,{"$f":"SUBTOTAL(109,Entrate[Periodo precedente])","v":0},{"$f":"SUBTOTAL(109,Entrate[Budget])","v":0},{"$f":"SUBTOTAL(109,Entrate[Periodo corrente])","v":0},{"$f":"SUBTOTAL(109,Entrate[Periodo corrente come % delle vendite])","v":{"v":0,"d":"0.00%"}},{"$f":"SUBTOTAL(109,Entrate[Variazione % dal periodo precedente])","v":{"v":0,"d":"0.00%"}},{"$f":"SUBTOTAL(109,Entrate[Variazione % dal budget])","v":{"v":0,"d":"0.00%"}}]

{"sheet":"Costi","index":3,"n_rows":25,"n_cols":9,"rows_kept":25,"merged":[[0,7,2,8]]}
[null,{"$f":"Titolo_CartellaLavoro","v":"Rendiconto profitti e perdite"}]
[null,{"$f":"Nome_Società","v":"Nome società"},"Valori espressi in migliaia"]
[null,"Costi di gestione",{"$f":"IFERROR(CostiGestione[[#Totals],[Periodo corrente]],\"-\")","v":0}]
[null,"Tipo di costo","Descrizione","Periodo precedente","Budget","Periodo corrente","Periodo corrente come % delle vendite","Variazione % dal periodo precedente","Variazione % dal budget"]
[null,"Vendite e marketing","Pubblicità",{"$nulls":3},{"$f":"IFERROR(IF(Ricavi_Vendite=0,\"-\",CostiGestione[[#This Row],[Periodo corrente]]/Ricavi_Vendite),\"-\")","v":"-"},{"$f":"IFERROR(IF(CostiGestione[[#This Row],[Periodo precedente]]=CostiGestione[[#This Row],[Periodo corrente]],0,IF(CostiGestione[[#This Row],[Periodo corrente]]>CostiGestione[[#This Row],[Periodo precedente]],ABS((CostiGestione[[#This Row],[Periodo corrente]]/CostiGestione[[#This Row],[Periodo precedente]])-1),IF(AND(CostiGestione[[#This Row],[Periodo corrente]]<CostiGestione[[#This Row],[Periodo precedente]],CostiGestione[[#This Row],[Periodo precedente]]<0),-((CostiGestione[[#This Row],[Periodo corrente]]/CostiGestione[[#This Row],[Periodo precedente]])-1),(CostiGestione[[#This Row],[Periodo corrente]]/CostiGestione[[#This Row],[Periodo precedente]])-1))),\"-\")","v":{"v":0,"d":"0.00%"}},{"$f":"IFERROR(IF(CostiGestione[[#This Row],[Budget]]=CostiGestione[[#This Row],[Periodo corrente]],0,IF(CostiGestione[[#This Row],[Periodo corrente]]>CostiGestione[[#This Row],[Budget]],ABS((CostiGestione[[#This Row],[Periodo corrente]]/CostiGestione[[#This Row],[Budget]])-1),IF(AND(CostiGestione[[#This Row],[Periodo corrente]]<CostiGestione[[#This Row],[Budget]],CostiGestione[[#This Row],[Budget]]<0),-((CostiGestione[[#This Row],[Periodo corrente]]/CostiGestione[[#This Row],[Budget]])-1),(CostiGestione[[#This Row],[Periodo corrente]]/CostiGestione[[#This Row],[Budget]])-1))),\"-\")","v":{"v":0,"d":"0.00%"}}]
[null,"Vendite e marketing","Marketing diretto",{"$nulls":3},{"$f":"IFERROR(IF(Ricavi_Vendite=0,\"-\",CostiGestione[[#This Row],[Periodo corrente]]/Ricavi_Vendite),\"-\")","v":"-"},{"$f":"IFERROR(IF(CostiGestione[[#This Row],[Periodo precedente]]=CostiGestione[[#This Row],[Periodo corrente]],0,IF(CostiGestione[[#This Row],[Periodo corrente]]>CostiGestione[[#This Row],[Periodo precedente]],ABS((CostiGestione[[#This Row],[Periodo corrente]]/CostiGestione[[#This Row],[Periodo precedente]])-1),IF(AND(CostiGestione[[#This Row],[Periodo corrente]]<CostiGestione[[#This Row],[Periodo precedente]],CostiGestione[[#This Row],[Periodo precedente]]<0),-((CostiGestione[[#This Row],[Periodo corrente]]/CostiGestione[[#This Row],[Periodo precedente]])-1),(CostiGestione[[#This Row],[Periodo corrente]]/CostiGestione[[#This Row],[Periodo precedente]])-1))),\"-\")","v":{"v":0,"d":"0.00%"}},{"$f":"IFERROR(IF(CostiGestione[[#This Row],[Budget]]=CostiGestione[[#This Row],[Periodo corrente]],0,IF(CostiGestione[[#This Row],[Periodo corrente]]>CostiGestione[[#This Row],[Budget]],ABS((CostiGestione[[#This Row],[Periodo corrente]]/CostiGestione[[#This Row],[Budget]])-1),IF(AND(CostiGestione[[#This Row],[Periodo corrente]]<CostiGestione[[#This Row],[Budget]],CostiGestione[[#This Row],[Budget]]<0),-((CostiGestione[[#This Row],[Periodo corrente]]/CostiGestione[[#This Row],[Budget]])-1),(CostiGestione[[#This Row],[Periodo corrente]]/CostiGestione[[#This Row],[Budget]])-1))),\"-\")","v":{"v":0,"d":"0.00%"}}]
[null,"Vendite e marketing","Altri costi (specificare)",{"$nulls":3},{"$f":"IFERROR(IF(Ricavi_Vendite=0,\"-\",CostiGestione[[#This Row],[Periodo corrente]]/Ricavi_Vendite),\"-\")","v":"-"},{"$f":"IFERROR(IF(CostiGestione[[#This Row],[Periodo precedente]]=CostiGestione[[#This Row],[Periodo corrente]],0,IF(CostiGestione[[#This Row],[Periodo corrente]]>CostiGestione[[#This Row],[Periodo precedente]],ABS((CostiGestione[[#This Row],[Periodo corrente]]/CostiGestione[[#This Row],[Periodo precedente]])-1),IF(AND(CostiGestione[[#This Row],[Periodo corrente]]<CostiGestione[[#This Row],[Periodo precedente]],CostiGestione[[#This Row],[Periodo precedente]]<0),-((CostiGestione[[#This Row],[Periodo corrente]]/CostiGestione[[#This Row],[Periodo precedente]])-1),(CostiGestione[[#This Row],[Periodo corrente]]/CostiGestione[[#This Row],[Periodo precedente]])-1))),\"-\")","v":{"v":0,"d":"0.00%"}},{"$f":"IFERROR(IF(CostiGestione[[#This Row],[Budget]]=CostiGestione[[#This Row],[Periodo corrente]],0,IF(CostiGestione[[#This Row],[Periodo corrente]]>CostiGestione[[#This Row],[Budget]],ABS((CostiGestione[[#This Row],[Periodo corrente]]/CostiGestione[[#This Row],[Budget]])-1),IF(AND(CostiGestione[[#This Row],[Periodo corrente]]<CostiGestione[[#This Row],[Budget]],CostiGestione[[#This Row],[Budget]]<0),-((CostiGestione[[#This Row],[Periodo corrente]]/CostiGestione[[#This Row],[Budget]])-1),(CostiGestione[[#This Row],[Periodo corrente]]/CostiGestione[[#This Row],[Budget]])-1))),\"-\")","v":{"v":0,"d":"0.00%"}}]
[null,"Vendite e marketing","Altri costi (specificare)",{"$nulls":3},{"$f":"IFERROR(IF(Ricavi_Vendite=0,\"-\",CostiGestione[[#This Row],[Periodo corrente]]/Ricavi_Vendite),\"-\")","v":"-"},{"$f":"IFERROR(IF(CostiGestione[[#This Row],[Periodo precedente]]=CostiGestione[[#This Row],[Periodo corrente]],0,IF(CostiGestione[[#This Row],[Periodo corrente]]>CostiGestione[[#This Row],[Periodo precedente]],ABS((CostiGestione[[#This Row],[Periodo corrente]]/CostiGestione[[#This Row],[Periodo precedente]])-1),IF(AND(CostiGestione[[#This Row],[Periodo corrente]]<CostiGestione[[#This Row],[Periodo precedente]],CostiGestione[[#This Row],[Periodo precedente]]<0),-((CostiGestione[[#This Row],[Periodo corrente]]/CostiGestione[[#This Row],[Periodo precedente]])-1),(CostiGestione[[#This Row],[Periodo corrente]]/CostiGestione[[#This Row],[Periodo precedente]])-1))),\"-\")","v":{"v":0,"d":"0.00%"}},{"$f":"IFERROR(IF(CostiGestione[[#This Row],[Budget]]=CostiGestione[[#This Row],[Periodo corrente]],0,IF(CostiGestione[[#This Row],[Periodo corrente]]>CostiGestione[[#This Row],[Budget]],ABS((CostiGestione[[#This Row],[Periodo corrente]]/CostiGestione[[#This Row],[Budget]])-1),IF(AND(CostiGestione[[#This Row],[Periodo corrente]]<CostiGestione[[#This Row],[Budget]],CostiGestione[[#This Row],[Budget]]<0),-((CostiGestione[[#This Row],[Periodo corrente]]/CostiGestione[[#This Row],[Budget]])-1),(CostiGestione[[#This Row],[Periodo corrente]]/CostiGestione[[#This Row],[Budget]])-1))),\"-\")","v":{"v":0,"d":"0.00%"}}]
[null,"Ricerca e sviluppo","Licenze per tecnologie",{"$nulls":3},{"$f":"IFERROR(IF(Ricavi_Vendite=0,\"-\",CostiGestione[[#This Row],[Periodo corrente]]/Ricavi_Vendite),\"-\")","v":"-"},{"$f":"IFERROR(IF(CostiGestione[[#This Row],[Periodo precedente]]=CostiGestione[[#This Row],[Periodo corrente]],0,IF(CostiGestione[[#This Row],[Periodo corrente]]>CostiGestione[[#This Row],[Periodo precedente]],ABS((CostiGestione[[#This Row],[Periodo corrente]]/CostiGestione[[#This Row],[Periodo precedente]])-1),IF(AND(CostiGestione[[#This Row],[Periodo corrente]]<CostiGestione[[#This Row],[Periodo precedente]],CostiGestione[[#This Row],[Periodo precedente]]<0),-((CostiGestione[[#This Row],[Periodo corrente]]/CostiGestione[[#This Row],[Periodo precedente]])-1),(CostiGestione[[#This Row],[Periodo corrente]]/CostiGestione[[#This Row],[Periodo precedente]])-1))),\"-\")","v":{"v":0,"d":"0.00%"}},{"$f":"IFERROR(IF(CostiGestione[[#This Row],[Budget]]=CostiGestione[[#This Row],[Periodo corrente]],0,IF(CostiGestione[[#This Row],[Periodo corrente]]>CostiGestione[[#This Row],[Budget]],ABS((CostiGestione[[#This Row],[Periodo corrente]]/CostiGestione[[#This Row],[Budget]])-1),IF(AND(CostiGestione[[#This Row],[Periodo corrente]]<CostiGestione[[#This Row],[Budget]],CostiGestione[[#This Row],[Budget]]<0),-((CostiGestione[[#This Row],[Periodo corrente]]/CostiGestione[[#This Row],[Budget]])-1),(CostiGestione[[#This Row],[Periodo corrente]]/CostiGestione[[#This Row],[Budget]])-1))),\"-\")","v":{"v":0,"d":"0.00%"}}]
[null,"Ricerca e sviluppo","Brevetti ",{"$nulls":3},{"$f":"IFERROR(IF(Ricavi_Vendite=0,\"-\",CostiGestione[[#This Row],[Periodo corrente]]/Ricavi_Vendite),\"-\")","v":"-"},{"$f":"IFERROR(IF(CostiGestione[[#This Row],[Periodo precedente]]=CostiGestione[[#This Row],[Periodo corrente]],0,IF(CostiGestione[[#This Row],[Periodo corrente]]>CostiGestione[[#This Row],[Periodo precedente]],ABS((CostiGestione[[#This Row],[Periodo corrente]]/CostiGestione[[#This Row],[Periodo precedente]])-1),IF(AND(CostiGestione[[#This Row],[Periodo corrente]]<CostiGestione[[#This Row],[Periodo precedente]],CostiGestione[[#This Row],[Periodo precedente]]<0),-((CostiGestione[[#This Row],[Periodo corrente]]/CostiGestione[[#This Row],[Periodo precedente]])-1),(CostiGestione[[#This Row],[Periodo corrente]]/CostiGestione[[#This Row],[Periodo precedente]])-1))),\"-\")","v":{"v":0,"d":"0.00%"}},{"$f":"IFERROR(IF(CostiGestione[[#This Row],[Budget]]=CostiGestione[[#This Row],[Periodo corrente]],0,IF(CostiGestione[[#This Row],[Periodo corrente]]>CostiGestione[[#This Row],[Budget]],ABS((CostiGestione[[#This Row],[Periodo corrente]]/CostiGestione[[#This Row],[Budget]])-1),IF(AND(CostiGestione[[#This Row],[Periodo corrente]]<CostiGestione[[#This Row],[Budget]],CostiGestione[[#This Row],[Budget]]<0),-((CostiGestione[[#This Row],[Periodo corrente]]/CostiGestione[[#This Row],[Budget]])-1),(CostiGestione[[#This Row],[Periodo corrente]]/CostiGestione[[#This Row],[Budget]])-1))),\"-\")","v":{"v":0,"d":"0.00%"}}]
[null,"Ricerca e sviluppo","Altri costi (specificare)",{"$nulls":3},{"$f":"IFERROR(IF(Ricavi_Vendite=0,\"-\",CostiGestione[[#This Row],[Periodo corrente]]/Ricavi_Vendite),\"-\")","v":"-"},{"$f":"IFERROR(IF(CostiGestione[[#This Row],[Periodo precedente]]=CostiGestione[[#This Row],[Periodo corrente]],0,IF(CostiGestione[[#This Row],[Periodo corrente]]>CostiGestione[[#This Row],[Periodo precedente]],ABS((CostiGestione[[#This Row],[Periodo corrente]]/CostiGestione[[#This Row],[Periodo precedente]])-1),IF(AND(CostiGestione[[#This Row],[Periodo corrente]]<CostiGestione[[#This Row],[Periodo precedente]],CostiGestione[[#This Row],[Periodo precedente]]<0),-((CostiGestione[[#This Row],[Periodo corrente]]/CostiGestione[[#This Row],[Periodo precedente]])-1),(CostiGestione[[#This Row],[Periodo corrente]]/CostiGestione[[#This Row],[Periodo precedente]])-1))),\"-\")","v":{"v":0,"d":"0.00%"}},{"$f":"IFERROR(IF(CostiGestione[[#This Row],[Budget]]=CostiGestione[[#This Row],[Periodo corrente]],0,IF(CostiGestione[[#This Row],[Periodo corrente]]>CostiGestione[[#This Row],[Budget]],ABS((CostiGestione[[#This Row],[Periodo corrente]]/CostiGestione[[#This Row],[Budget]])-1),IF(AND(CostiGestione[[#This Row],[Periodo corrente]]<CostiGestione[[#This Row],[Budget]],CostiGestione[[#This Row],[Budget]]<0),-((CostiGestione[[#This Row],[Periodo corrente]]/CostiGestione[[#This Row],[Budget]])-1),(CostiGestione[[#This Row],[Periodo corrente]]/CostiGestione[[#This Row],[Budget]])-1))),\"-\")","v":{"v":0,"d":"0.00%"}}]
[null,"Ricerca e sviluppo","Altri costi (specificare)",{"$nulls":3},{"$f":"IFERROR(IF(Ricavi_Vendite=0,\"-\",CostiGestione[[#This Row],[Periodo corrente]]/Ricavi_Vendite),\"-\")","v":"-"},{"$f":"IFERROR(IF(CostiGestione[[#This Row],[Periodo precedente]]=CostiGestione[[#This Row],[Periodo corrente]],0,IF(CostiGestione[[#This Row],[Periodo corrente]]>CostiGestione[[#This Row],[Periodo precedente]],ABS((CostiGestione[[#This Row],[Periodo corrente]]/CostiGestione[[#This Row],[Periodo precedente]])-1),IF(AND(CostiGestione[[#This Row],[Periodo corrente]]<CostiGestione[[#This Row],[Periodo precedente]],CostiGestione[[#This Row],[Periodo precedente]]<0),-((CostiGestione[[#This Row],[Periodo corrente]]/CostiGestione[[#This Row],[Periodo precedente]])-1),(CostiGestione[[#This Row],[Periodo corrente]]/CostiGestione[[#This Row],[Periodo precedente]])-1))),\"-\")","v":{"v":0,"d":"0.00%"}},{"$f":"IFERROR(IF(CostiGestione[[#This Row],[Budget]]=CostiGestione[[#This Row],[Periodo corrente]],0,IF(CostiGestione[[#This Row],[Periodo corrente]]>CostiGestione[[#This Row],[Budget]],ABS((CostiGestione[[#This Row],[Periodo corrente]]/CostiGestione[[#This Row],[Budget]])-1),IF(AND(CostiGestione[[#This Row],[Periodo corrente]]<CostiGestione[[#This Row],[Budget]],CostiGestione[[#This Row],[Budget]]<0),-((CostiGestione[[#This Row],[Periodo corrente]]/CostiGestione[[#This Row],[Budget]])-1),(CostiGestione[[#This Row],[Periodo corrente]]/CostiGestione[[#This Row],[Budget]])-1))),\"-\")","v":{"v":0,"d":"0.00%"}}]
[null,"Generali e di amministrazione","Salari e stipendi",{"$nulls":3},{"$f":"IFERROR(IF(Ricavi_Vendite=0,\"-\",CostiGestione[[#This Row],[Periodo corrente]]/Ricavi_Vendite),\"-\")","v":"-"},{"$f":"IFERROR(IF(CostiGestione[[#This Row],[Periodo precedente]]=CostiGestione[[#This Row],[Periodo corrente]],0,IF(CostiGestione[[#This Row],[Periodo corrente]]>CostiGestione[[#This Row],[Periodo precedente]],ABS((CostiGestione[[#This Row],[Periodo corrente]]/CostiGestione[[#This Row],[Periodo precedente]])-1),IF(AND(CostiGestione[[#This Row],[Periodo corrente]]<CostiGestione[[#This Row],[Periodo precedente]],CostiGestione[[#This Row],[Periodo precedente]]<0),-((CostiGestione[[#This Row],[Periodo corrente]]/CostiGestione[[#This Row],[Periodo precedente]])-1),(CostiGestione[[#This Row],[Periodo corrente]]/CostiGestione[[#This Row],[Periodo precedente]])-1))),\"-\")","v":{"v":0,"d":"0.00%"}},{"$f":"IFERROR(IF(CostiGestione[[#This Row],[Budget]]=CostiGestione[[#This Row],[Periodo corrente]],0,IF(CostiGestione[[#This Row],[Periodo corrente]]>CostiGestione[[#This Row],[Budget]],ABS((CostiGestione[[#This Row],[Periodo corrente]]/CostiGestione[[#This Row],[Budget]])-1),IF(AND(CostiGestione[[#This Row],[Periodo corrente]]<CostiGestione[[#This Row],[Budget]],CostiGestione[[#This Row],[Budget]]<0),-((CostiGestione[[#This Row],[Periodo corrente]]/CostiGestione[[#This Row],[Budget]])-1),(CostiGestione[[#This Row],[Periodo corrente]]/CostiGestione[[#This Row],[Budget]])-1))),\"-\")","v":{"v":0,"d":"0.00%"}}]
[null,"Generali e di amministrazione","Servizi esterni",{"$nulls":3},{"$f":"IFERROR(IF(Ricavi_Vendite=0,\"-\",CostiGestione[[#This Row],[Periodo corrente]]/Ricavi_Vendite),\"-\")","v":"-"},{"$f":"IFERROR(IF(CostiGestione[[#This Row],[Periodo precedente]]=CostiGestione[[#This Row],[Periodo corrente]],0,IF(CostiGestione[[#This Row],[Periodo corrente]]>CostiGestione[[#This Row],[Periodo precedente]],ABS((CostiGestione[[#This Row],[Periodo corrente]]/CostiGestione[[#This Row],[Periodo precedente]])-1),IF(AND(CostiGestione[[#This Row],[Periodo corrente]]<CostiGestione[[#This Row],[Periodo precedente]],CostiGestione[[#This Row],[Periodo precedente]]<0),-((CostiGestione[[#This Row],[Periodo corrente]]/CostiGestione[[#This Row],[Periodo precedente]])-1),(CostiGestione[[#This Row],[Periodo corrente]]/CostiGestione[[#This Row],[Periodo precedente]])-1))),\"-\")","v":{"v":0,"d":"0.00%"}},{"$f":"IFERROR(IF(CostiGestione[[#This Row],[Budget]]=CostiGestione[[#This Row],[Periodo corrente]],0,IF(CostiGestione[[#This Row],[Periodo corrente]]>CostiGestione[[#This Row],[Budget]],ABS((CostiGestione[[#This Row],[Periodo corrente]]/CostiGestione[[#This Row],[Budget]])-1),IF(AND(CostiGestione[[#This Row],[Periodo corrente]]<CostiGestione[[#This Row],[Budget]],CostiGestione[[#This Row],[Budget]]<0),-((CostiGestione[[#This Row],[Periodo corrente]]/CostiGestione[[#This Row],[Budget]])-1),(CostiGestione[[#This Row],[Periodo corrente]]/CostiGestione[[#This Row],[Budget]])-1))),\"-\")","v":{"v":0,"d":"0.00%"}}]
[null,"Generali e di amministrazione","Materiali",{"$nulls":3},{"$f":"IFERROR(IF(Ricavi_Vendite=0,\"-\",CostiGestione[[#This Row],[Periodo corrente]]/Ricavi_Vendite),\"-\")","v":"-"},{"$f":"IFERROR(IF(CostiGestione[[#This Row],[Periodo precedente]]=CostiGestione[[#This Row],[Periodo corrente]],0,IF(CostiGestione[[#This Row],[Periodo corrente]]>CostiGestione[[#This Row],[Periodo precedente]],ABS((CostiGestione[[#This Row],[Periodo corrente]]/CostiGestione[[#This Row],[Periodo precedente]])-1),IF(AND(CostiGestione[[#This Row],[Periodo corrente]]<CostiGestione[[#This Row],[Periodo precedente]],CostiGestione[[#This Row],[Periodo precedente]]<0),-((CostiGestione[[#This Row],[Periodo corrente]]/CostiGestione[[#This Row],[Periodo precedente]])-1),(CostiGestione[[#This Row],[Periodo corrente]]/CostiGestione[[#This Row],[Periodo precedente]])-1))),\"-\")","v":{"v":0,"d":"0.00%"}},{"$f":"IFERROR(IF(CostiGestione[[#This Row],[Budget]]=CostiGestione[[#This Row],[Periodo corrente]],0,IF(CostiGestione[[#This Row],[Periodo corrente]]>CostiGestione[[#This Row],[Budget]],ABS((CostiGestione[[#This Row],[Periodo corrente]]/CostiGestione[[#This Row],[Budget]])-1),IF(AND(CostiGestione[[#This Row],[Periodo corrente]]<CostiGestione[[#This Row],[Budget]],CostiGestione[[#This Row],[Budget]]<0),-((CostiGestione[[#This Row],[Periodo corrente]]/CostiGestione[[#This Row],[Budget]])-1),(CostiGestione[[#This Row],[Periodo corrente]]/CostiGestione[[#This Row],[Budget]])-1))),\"-\")","v":{"v":0,"d":"0.00%"}}]
[null,"Generali e di amministrazione","Pasti e intrattenimento",{"$nulls":3},{"$f":"IFERROR(IF(Ricavi_Vendite=0,\"-\",CostiGestione[[#This Row],[Periodo corrente]]/Ricavi_Vendite),\"-\")","v":"-"},{"$f":"IFERROR(IF(CostiGestione[[#This Row],[Periodo precedente]]=CostiGestione[[#This Row],[Periodo corrente]],0,IF(CostiGestione[[#This Row],[Periodo corrente]]>CostiGestione[[#This Row],[Periodo precedente]],ABS((CostiGestione[[#This Row],[Periodo corrente]]/CostiGestione[[#This Row],[Periodo precedente]])-1),IF(AND(CostiGestione[[#This Row],[Periodo corrente]]<CostiGestione[[#This Row],[Periodo precedente]],CostiGestione[[#This Row],[Periodo precedente]]<0),-((CostiGestione[[#This Row],[Periodo corrente]]/CostiGestione[[#This Row],[Periodo precedente]])-1),(CostiGestione[[#This Row],[Periodo corrente]]/CostiGestione[[#This Row],[Periodo precedente]])-1))),\"-\")","v":{"v":0,"d":"0.00%"}},{"$f":"IFERROR(IF(CostiGestione[[#This Row],[Budget]]=CostiGestione[[#This Row],[Periodo corrente]],0,IF(CostiGestione[[#This Row],[Periodo corrente]]>CostiGestione[[#This Row],[Budget]],ABS((CostiGestione[[#This Row],[Periodo corrente]]/CostiGestione[[#This Row],[Budget]])-1),IF(AND(CostiGestione[[#This Row],[Periodo corrente]]<CostiGestione[[#This Row],[Budget]],CostiGestione[[#This Row],[Budget]]<0),-((CostiGestione[[#This Row],[Periodo corrente]]/CostiGestione[[#This Row],[Budget]])-1),(CostiGestione[[#This Row],[Periodo corrente]]/CostiGestione[[#This Row],[Budget]])-1))),\"-\")","v":{"v":0,"d":"0.00%"}}]
[null,"Generali e di amministrazione","Affitto",{"$nulls":3},{"$f":"IFERROR(IF(Ricavi_Vendite=0,\"-\",CostiGestione[[#This Row],[Periodo corrente]]/Ricavi_Vendite),\"-\")","v":"-"},{"$f":"IFERROR(IF(CostiGestione[[#This Row],[Periodo precedente]]=CostiGestione[[#This Row],[Periodo corrente]],0,IF(CostiGestione[[#This Row],[Periodo corrente]]>CostiGestione[[#This Row],[Periodo precedente]],ABS((CostiGestione[[#This Row],[Periodo corrente]]/CostiGestione[[#This Row],[Periodo precedente]])-1),IF(AND(CostiGestione[[#This Row],[Periodo corrente]]<CostiGestione[[#This Row],[Periodo precedente]],CostiGestione[[#This Row],[Periodo precedente]]<0),-((CostiGestione[[#This Row],[Periodo corrente]]/CostiGestione[[#This Row],[Periodo precedente]])-1),(CostiGestione[[#This Row],[Periodo corrente]]/CostiGestione[[#This Row],[Periodo precedente]])-1))),\"-\")","v":{"v":0,"d":"0.00%"}},{"$f":"IFERROR(IF(CostiGestione[[#This Row],[Budget]]=CostiGestione[[#This Row],[Periodo corrente]],0,IF(CostiGestione[[#This Row],[Periodo corrente]]>CostiGestione[[#This Row],[Budget]],ABS((CostiGestione[[#This Row],[Periodo corrente]]/CostiGestione[[#This Row],[Budget]])-1),IF(AND(CostiGestione[[#This Row],[Periodo corrente]]<CostiGestione[[#This Row],[Budget]],CostiGestione[[#This Row],[Budget]]<0),-((CostiGestione[[#This Row],[Periodo corrente]]/CostiGestione[[#This Row],[Budget]])-1),(CostiGestione[[#This Row],[Periodo corrente]]/CostiGestione[[#This Row],[Budget]])-1))),\"-\")","v":{"v":0,"d":"0.00%"}}]
[null,"Generali e di amministrazione","Telefono",{"$nulls":3},{"$f":"IFERROR(IF(Ricavi_Vendite=0,\"-\",CostiGestione[[#This Row],[Periodo corrente]]/Ricavi_Vendite),\"-\")","v":"-"},{"$f":"IFERROR(IF(CostiGestione[[#This Row],[Periodo precedente]]=CostiGestione[[#This Row],[Periodo corrente]],0,IF(CostiGestione[[#This Row],[Periodo corrente]]>CostiGestione[[#This Row],[Periodo precedente]],ABS((CostiGestione[[#This Row],[Periodo corrente]]/CostiGestione[[#This Row],[Periodo precedente]])-1),IF(AND(CostiGestione[[#This Row],[Periodo corrente]]<CostiGestione[[#This Row],[Periodo precedente]],CostiGestione[[#This Row],[Periodo precedente]]<0),-((CostiGestione[[#This Row],[Periodo corrente]]/CostiGestione[[#This Row],[Periodo precedente]])-1),(CostiGestione[[#This Row],[Periodo corrente]]/CostiGestione[[#This Row],[Periodo precedente]])-1))),\"-\")","v":{"v":0,"d":"0.00%"}},{"$f":"IFERROR(IF(CostiGestione[[#This Row],[Budget]]=CostiGestione[[#This Row],[Periodo corrente]],0,IF(CostiGestione[[#This Row],[Periodo corrente]]>CostiGestione[[#This Row],[Budget]],ABS((CostiGestione[[#This Row],[Periodo corrente]]/CostiGestione[[#This Row],[Budget]])-1),IF(AND(CostiGestione[[#This Row],[Periodo corrente]]<CostiGestione[[#This Row],[Budget]],CostiGestione[[#This Row],[Budget]]<0),-((CostiGestione[[#This Row],[Periodo corrente]]/CostiGestione[[#This Row],[Budget]])-1),(CostiGestione[[#This Row],[Periodo corrente]]/CostiGestione[[#This Row],[Budget]])-1))),\"-\")","v":{"v":0,"d":"0.00%"}}]
[null,"Generali e di amministrazione","Utenze",{"$nulls":3},{"$f":"IFERROR(IF(Ricavi_Vendite=0,\"-\",CostiGestione[[#This Row],[Periodo corrente]]/Ricavi_Vendite),\"-\")","v":"-"},{"$f":"IFERROR(IF(CostiGestione[[#This Row],[Periodo precedente]]=CostiGestione[[#This Row],[Periodo corrente]],0,IF(CostiGestione[[#This Row],[Periodo corrente]]>CostiGestione[[#This Row],[Periodo precedente]],ABS((CostiGestione[[#This Row],[Periodo corrente]]/CostiGestione[[#This Row],[Periodo precedente]])-1),IF(AND(CostiGestione[[#This Row],[Periodo corrente]]<CostiGestione[[#This Row],[Periodo precedente]],CostiGestione[[#This Row],[Periodo precedente]]<0),-((CostiGestione[[#This Row],[Periodo corrente]]/CostiGestione[[#This Row],[Periodo precedente]])-1),(CostiGestione[[#This Row],[Periodo corrente]]/CostiGestione[[#This Row],[Periodo precedente]])-1))),\"-\")","v":{"v":0,"d":"0.00%"}},{"$f":"IFERROR(IF(CostiGestione[[#This Row],[Budget]]=CostiGestione[[#This Row],[Periodo corrente]],0,IF(CostiGestione[[#This Row],[Periodo corrente]]>CostiGestione[[#This Row],[Budget]],ABS((CostiGestione[[#This Row],[Periodo corrente]]/CostiGestione[[#This Row],[Budget]])-1),IF(AND(CostiGestione[[#This Row],[Periodo corrente]]<CostiGestione[[#This Row],[Budget]],CostiGestione[[#This Row],[Budget]]<0),-((CostiGestione[[#This Row],[Periodo corrente]]/CostiGestione[[#This Row],[Budget]])-1),(CostiGestione[[#This Row],[Periodo corrente]]/CostiGestione[[#This Row],[Budget]])-1))),\"-\")","v":{"v":0,"d":"0.00%"}}]
[null,"Generali e di amministrazione","Ammortamento",{"$nulls":3},{"$f":"IFERROR(IF(Ricavi_Vendite=0,\"-\",CostiGestione[[#This Row],[Periodo corrente]]/Ricavi_Vendite),\"-\")","v":"-"},{"$f":"IFERROR(IF(CostiGestione[[#This Row],[Periodo precedente]]=CostiGestione[[#This Row],[Periodo corrente]],0,IF(CostiGestione[[#This Row],[Periodo corrente]]>CostiGestione[[#This Row],[Periodo precedente]],ABS((CostiGestione[[#This Row],[Periodo corrente]]/CostiGestione[[#This Row],[Periodo precedente]])-1),IF(AND(CostiGestione[[#This Row],[Periodo corrente]]<CostiGestione[[#This Row],[Periodo precedente]],CostiGestione[[#This Row],[Periodo precedente]]<0),-((CostiGestione[[#This Row],[Periodo corrente]]/CostiGestione[[#This Row],[Periodo precedente]])-1),(CostiGestione[[#This Row],[Periodo corrente]]/CostiGestione[[#This Row],[Periodo precedente]])-1))),\"-\")","v":{"v":0,"d":"0.00%"}},{"$f":"IFERROR(IF(CostiGestione[[#This Row],[Budget]]=CostiGestione[[#This Row],[Periodo corrente]],0,IF(CostiGestione[[#This Row],[Periodo corrente]]>CostiGestione[[#This Row],[Budget]],ABS((CostiGestione[[#This Row],[Periodo corrente]]/CostiGestione[[#This Row],[Budget]])-1),IF(AND(CostiGestione[[#This Row],[Periodo corrente]]<CostiGestione[[#This Row],[Budget]],CostiGestione[[#This Row],[Budget]]<0),-((CostiGestione[[#This Row],[Periodo corrente]]/CostiGestione[[#This Row],[Budget]])-1),(CostiGestione[[#This Row],[Periodo corrente]]/CostiGestione[[#This Row],[Budget]])-1))),\"-\")","v":{"v":0,"d":"0.00%"}}]
[null,"Generali e di amministrazione","Assicurazione",{"$nulls":3},{"$f":"IFERROR(IF(Ricavi_Vendite=0,\"-\",CostiGestione[[#This Row],[Periodo corrente]]/Ricavi_Vendite),\"-\")","v":"-"},{"$f":"IFERROR(IF(CostiGestione[[#This Row],[Periodo precedente]]=CostiGestione[[#This Row],[Periodo corrente]],0,IF(CostiGestione[[#This Row],[Periodo corrente]]>CostiGestione[[#This Row],[Periodo precedente]],ABS((CostiGestione[[#This Row],[Periodo corrente]]/CostiGestione[[#This Row],[Periodo precedente]])-1),IF(AND(CostiGestione[[#This Row],[Periodo corrente]]<CostiGestione[[#This Row],[Periodo precedente]],CostiGestione[[#This Row],[Periodo precedente]]<0),-((CostiGestione[[#This Row],[Periodo corrente]]/CostiGestione[[#This Row],[Periodo precedente]])-1),(CostiGestione[[#This Row],[Periodo corrente]]/CostiGestione[[#This Row],[Periodo precedente]])-1))),\"-\")","v":{"v":0,"d":"0.00%"}},{"$f":"IFERROR(IF(CostiGestione[[#This Row],[Budget]]=CostiGestione[[#This Row],[Periodo corrente]],0,IF(CostiGestione[[#This Row],[Periodo corrente]]>CostiGestione[[#This Row],[Budget]],ABS((CostiGestione[[#This Row],[Periodo corrente]]/CostiGestione[[#This Row],[Budget]])-1),IF(AND(CostiGestione[[#This Row],[Periodo corrente]]<CostiGestione[[#This Row],[Budget]],CostiGestione[[#This Row],[Budget]]<0),-((CostiGestione[[#This Row],[Periodo corrente]]/CostiGestione[[#This Row],[Budget]])-1),(CostiGestione[[#This Row],[Periodo corrente]]/CostiGestione[[#This Row],[Budget]])-1))),\"-\")","v":{"v":0,"d":"0.00%"}}]
[null,"Generali e di amministrazione","Riparazioni e manutenzione",{"$nulls":3},{"$f":"IFERROR(IF(Ricavi_Vendite=0,\"-\",CostiGestione[[#This Row],[Periodo corrente]]/Ricavi_Vendite),\"-\")","v":"-"},{"$f":"IFERROR(IF(CostiGestione[[#This Row],[Periodo precedente]]=CostiGestione[[#This Row],[Periodo corrente]],0,IF(CostiGestione[[#This Row],[Periodo corrente]]>CostiGestione[[#This Row],[Periodo precedente]],ABS((CostiGestione[[#This Row],[Periodo corrente]]/CostiGestione[[#This Row],[Periodo precedente]])-1),IF(AND(CostiGestione[[#This Row],[Periodo corrente]]<CostiGestione[[#This Row],[Periodo precedente]],CostiGestione[[#This Row],[Periodo precedente]]<0),-((CostiGestione[[#This Row],[Periodo corrente]]/CostiGestione[[#This Row],[Periodo precedente]])-1),(CostiGestione[[#This Row],[Periodo corrente]]/CostiGestione[[#This Row],[Periodo precedente]])-1))),\"-\")","v":{"v":0,"d":"0.00%"}},{"$f":"IFERROR(IF(CostiGestione[[#This Row],[Budget]]=CostiGestione[[#This Row],[Periodo corrente]],0,IF(CostiGestione[[#This Row],[Periodo corrente]]>CostiGestione[[#This Row],[Budget]],ABS((CostiGestione[[#This Row],[Periodo corrente]]/CostiGestione[[#This Row],[Budget]])-1),IF(AND(CostiGestione[[#This Row],[Periodo corrente]]<CostiGestione[[#This Row],[Budget]],CostiGestione[[#This Row],[Budget]]<0),-((CostiGestione[[#This Row],[Periodo corrente]]/CostiGestione[[#This Row],[Budget]])-1),(CostiGestione[[#This Row],[Periodo corrente]]/CostiGestione[[#This Row],[Budget]])-1))),\"-\")","v":{"v":0,"d":"0.00%"}}]
[null,"Generali e di amministrazione","Altri costi (specificare)",{"$nulls":3},{"$f":"IFERROR(IF(Ricavi_Vendite=0,\"-\",CostiGestione[[#This Row],[Periodo corrente]]/Ricavi_Vendite),\"-\")","v":"-"},{"$f":"IFERROR(IF(CostiGestione[[#This Row],[Periodo precedente]]=CostiGestione[[#This Row],[Periodo corrente]],0,IF(CostiGestione[[#This Row],[Periodo corrente]]>CostiGestione[[#This Row],[Periodo precedente]],ABS((CostiGestione[[#This Row],[Periodo corrente]]/CostiGestione[[#This Row],[Periodo precedente]])-1),IF(AND(CostiGestione[[#This Row],[Periodo corrente]]<CostiGestione[[#This Row],[Periodo precedente]],CostiGestione[[#This Row],[Periodo precedente]]<0),-((CostiGestione[[#This Row],[Periodo corrente]]/CostiGestione[[#This Row],[Periodo precedente]])-1),(CostiGestione[[#This Row],[Periodo corrente]]/CostiGestione[[#This Row],[Periodo precedente]])-1))),\"-\")","v":{"v":0,"d":"0.00%"}},{"$f":"IFERROR(IF(CostiGestione[[#This Row],[Budget]]=CostiGestione[[#This Row],[Periodo corrente]],0,IF(CostiGestione[[#This Row],[Periodo corrente]]>CostiGestione[[#This Row],[Budget]],ABS((CostiGestione[[#This Row],[Periodo corrente]]/CostiGestione[[#This Row],[Budget]])-1),IF(AND(CostiGestione[[#This Row],[Periodo corrente]]<CostiGestione[[#This Row],[Budget]],CostiGestione[[#This Row],[Budget]]<0),-((CostiGestione[[#This Row],[Periodo corrente]]/CostiGestione[[#This Row],[Budget]])-1),(CostiGestione[[#This Row],[Periodo corrente]]/CostiGestione[[#This Row],[Budget]])-1))),\"-\")","v":{"v":0,"d":"0.00%"}}]
[null,"Generali e di amministrazione","Altri costi (specificare)",{"$nulls":3},{"$f":"IFERROR(IF(Ricavi_Vendite=0,\"-\",CostiGestione[[#This Row],[Periodo corrente]]/Ricavi_Vendite),\"-\")","v":"-"},{"$f":"IFERROR(IF(CostiGestione[[#This Row],[Periodo precedente]]=CostiGestione[[#This Row],[Periodo corrente]],0,IF(CostiGestione[[#This Row],[Periodo corrente]]>CostiGestione[[#This Row],[Periodo precedente]],ABS((CostiGestione[[#This Row],[Periodo corrente]]/CostiGestione[[#This Row],[Periodo precedente]])-1),IF(AND(CostiGestione[[#This Row],[Periodo corrente]]<CostiGestione[[#This Row],[Periodo precedente]],CostiGestione[[#This Row],[Periodo precedente]]<0),-((CostiGestione[[#This Row],[Periodo corrente]]/CostiGestione[[#This Row],[Periodo precedente]])-1),(CostiGestione[[#This Row],[Periodo corrente]]/CostiGestione[[#This Row],[Periodo precedente]])-1))),\"-\")","v":{"v":0,"d":"0.00%"}},{"$f":"IFERROR(IF(CostiGestione[[#This Row],[Budget]]=CostiGestione[[#This Row],[Periodo corrente]],0,IF(CostiGestione[[#This Row],[Periodo corrente]]>CostiGestione[[#This Row],[Budget]],ABS((CostiGestione[[#This Row],[Periodo corrente]]/CostiGestione[[#This Row],[Budget]])-1),IF(AND(CostiGestione[[#This Row],[Periodo corrente]]<CostiGestione[[#This Row],[Budget]],CostiGestione[[#This Row],[Budget]]<0),-((CostiGestione[[#This Row],[Periodo corrente]]/CostiGestione[[#This Row],[Budget]])-1),(CostiGestione[[#This Row],[Periodo corrente]]/CostiGestione[[#This Row],[Budget]])-1))),\"-\")","v":{"v":0,"d":"0.00%"}}]
[null,"Totale costi di gestione",null,{"$f":"SUBTOTAL(109,CostiGestione[Periodo precedente])","v":0},{"$f":"SUBTOTAL(109,CostiGestione[Budget])","v":0},{"$f":"SUBTOTAL(109,CostiGestione[Periodo corrente])","v":0},{"$f":"SUBTOTAL(109,CostiGestione[Periodo corrente come % delle vendite])","v":{"v":0,"d":"0.00%"}},{"$f":"SUBTOTAL(109,CostiGestione[Variazione % dal periodo precedente])","v":{"v":0,"d":"0.00%"}},{"$f":"SUBTOTAL(109,CostiGestione[Variazione % dal budget])","v":{"v":0,"d":"0.00%"}}]

{"sheet":"Imposte","index":4,"n_rows":10,"n_cols":9,"rows_kept":10,"merged":[[0,7,2,8]]}
[null,{"$f":"Titolo_CartellaLavoro","v":"Rendiconto profitti e perdite"}]
[null,{"$f":"Nome_Società","v":"Nome società"},"Valori espressi in migliaia"]
[null,"Imposte",{"$f":"IFERROR(Imposte[[#Totals],[Periodo corrente]],\"-\")","v":0}]
[null,"Tipo","Descrizione","Periodo precedente","Budget","Periodo corrente","Periodo corrente come % delle vendite","Variazione % dal periodo precedente","Variazione % dal budget"]
[null,"Imposte","Imposte sul reddito",{"$nulls":3},{"$f":"IFERROR(IF(Ricavi_Vendite=0,\"-\",Imposte[[#This Row],[Periodo corrente]]/Ricavi_Vendite),\"-\")","v":"-"},{"$f":"IFERROR(IF(Imposte[[#This Row],[Periodo precedente]]=Imposte[[#This Row],[Periodo corrente]],0,IF(Imposte[[#This Row],[Periodo corrente]]>Imposte[[#This Row],[Periodo precedente]],ABS((Imposte[[#This Row],[Periodo corrente]]/Imposte[[#This Row],[Periodo precedente]])-1),IF(AND(Imposte[[#This Row],[Periodo corrente]]<Imposte[[#This Row],[Periodo precedente]],Imposte[[#This Row],[Periodo precedente]]<0),-((Imposte[[#This Row],[Periodo corrente]]/Imposte[[#This Row],[Periodo precedente]])-1),(Imposte[[#This Row],[Periodo corrente]]/Imposte[[#This Row],[Periodo precedente]])-1))),\"-\")","v":{"v":0,"d":"0.00%"}},{"$f":"IFERROR(IF(Imposte[[#This Row],[Budget]]=Imposte[[#This Row],[Periodo corrente]],0,IF(Imposte[[#This Row],[Periodo corrente]]>Imposte[[#This Row],[Budget]],ABS((Imposte[[#This Row],[Periodo corrente]]/Imposte[[#This Row],[Budget]])-1),IF(AND(Imposte[[#This Row],[Periodo corrente]]<Imposte[[#This Row],[Budget]],Imposte[[#This Row],[Budget]]<0),-((Imposte[[#This Row],[Periodo corrente]]/Imposte[[#This Row],[Budget]])-1),(Imposte[[#This Row],[Periodo corrente]]/Imposte[[#This Row],[Budget]])-1))),\"-\")","v":{"v":0,"d":"0.00%"}}]
[null,"Imposte","Imposte sulle retribuzioni",{"$nulls":3},{"$f":"IFERROR(IF(Ricavi_Vendite=0,\"-\",Imposte[[#This Row],[Periodo corrente]]/Ricavi_Vendite),\"-\")","v":"-"},{"$f":"IFERROR(IF(Imposte[[#This Row],[Periodo precedente]]=Imposte[[#This Row],[Periodo corrente]],0,IF(Imposte[[#This Row],[Periodo corrente]]>Imposte[[#This Row],[Periodo precedente]],ABS((Imposte[[#This Row],[Periodo corrente]]/Imposte[[#This Row],[Periodo precedente]])-1),IF(AND(Imposte[[#This Row],[Periodo corrente]]<Imposte[[#This Row],[Periodo precedente]],Imposte[[#This Row],[Periodo precedente]]<0),-((Imposte[[#This Row],[Periodo corrente]]/Imposte[[#This Row],[Periodo precedente]])-1),(Imposte[[#This Row],[Periodo corrente]]/Imposte[[#This Row],[Periodo precedente]])-1))),\"-\")","v":{"v":0,"d":"0.00%"}},{"$f":"IFERROR(IF(Imposte[[#This Row],[Budget]]=Imposte[[#This Row],[Periodo corrente]],0,IF(Imposte[[#This Row],[Periodo corrente]]>Imposte[[#This Row],[Budget]],ABS((Imposte[[#This Row],[Periodo corrente]]/Imposte[[#This Row],[Budget]])-1),IF(AND(Imposte[[#This Row],[Periodo corrente]]<Imposte[[#This Row],[Budget]],Imposte[[#This Row],[Budget]]<0),-((Imposte[[#This Row],[Periodo corrente]]/Imposte[[#This Row],[Budget]])-1),(Imposte[[#This Row],[Periodo corrente]]/Imposte[[#This Row],[Budget]])-1))),\"-\")","v":{"v":0,"d":"0.00%"}}]
[null,"Imposte","Imposte sugli immobili",{"$nulls":3},{"$f":"IFERROR(IF(Ricavi_Vendite=0,\"-\",Imposte[[#This Row],[Periodo corrente]]/Ricavi_Vendite),\"-\")","v":"-"},{"$f":"IFERROR(IF(Imposte[[#This Row],[Periodo precedente]]=Imposte[[#This Row],[Periodo corrente]],0,IF(Imposte[[#This Row],[Periodo corrente]]>Imposte[[#This Row],[Periodo precedente]],ABS((Imposte[[#This Row],[Periodo corrente]]/Imposte[[#This Row],[Periodo precedente]])-1),IF(AND(Imposte[[#This Row],[Periodo corrente]]<Imposte[[#This Row],[Periodo precedente]],Imposte[[#This Row],[Periodo precedente]]<0),-((Imposte[[#This Row],[Periodo corrente]]/Imposte[[#This Row],[Periodo precedente]])-1),(Imposte[[#This Row],[Periodo corrente]]/Imposte[[#This Row],[Periodo precedente]])-1))),\"-\")","v":{"v":0,"d":"0.00%"}},{"$f":"IFERROR(IF(Imposte[[#This Row],[Budget]]=Imposte[[#This Row],[Periodo corrente]],0,IF(Imposte[[#This Row],[Periodo corrente]]>Imposte[[#This Row],[Budget]],ABS((Imposte[[#This Row],[Periodo corrente]]/Imposte[[#This Row],[Budget]])-1),IF(AND(Imposte[[#This Row],[Periodo corrente]]<Imposte[[#This Row],[Budget]],Imposte[[#This Row],[Budget]]<0),-((Imposte[[#This Row],[Periodo corrente]]/Imposte[[#This Row],[Budget]])-1),(Imposte[[#This Row],[Periodo corrente]]/Imposte[[#This Row],[Budget]])-1))),\"-\")","v":{"v":0,"d":"0.00%"}}]
[null,"Imposte","Altre imposte (specificare)",{"$nulls":3},{"$f":"IFERROR(IF(Ricavi_Vendite=0,\"-\",Imposte[[#This Row],[Periodo corrente]]/Ricavi_Vendite),\"-\")","v":"-"},{"$f":"IFERROR(IF(Imposte[[#This Row],[Periodo precedente]]=Imposte[[#This Row],[Periodo corrente]],0,IF(Imposte[[#This Row],[Periodo corrente]]>Imposte[[#This Row],[Periodo precedente]],ABS((Imposte[[#This Row],[Periodo corrente]]/Imposte[[#This Row],[Periodo precedente]])-1),IF(AND(Imposte[[#This Row],[Periodo corrente]]<Imposte[[#This Row],[Periodo precedente]],Imposte[[#This Row],[Periodo precedente]]<0),-((Imposte[[#This Row],[Periodo corrente]]/Imposte[[#This Row],[Periodo precedente]])-1),(Imposte[[#This Row],[Periodo corrente]]/Imposte[[#This Row],[Periodo precedente]])-1))),\"-\")","v":{"v":0,"d":"0.00%"}},{"$f":"IFERROR(IF(Imposte[[#This Row],[Budget]]=Imposte[[#This Row],[Periodo corrente]],0,IF(Imposte[[#This Row],[Periodo corrente]]>Imposte[[#This Row],[Budget]],ABS((Imposte[[#This Row],[Periodo corrente]]/Imposte[[#This Row],[Budget]])-1),IF(AND(Imposte[[#This Row],[Periodo corrente]]<Imposte[[#This Row],[Budget]],Imposte[[#This Row],[Budget]]<0),-((Imposte[[#This Row],[Periodo corrente]]/Imposte[[#This Row],[Budget]])-1),(Imposte[[#This Row],[Periodo corrente]]/Imposte[[#This Row],[Budget]])-1))),\"-\")","v":{"v":0,"d":"0.00%"}}]
[null,"Imposte","Altre imposte (specificare)",{"$nulls":3},{"$f":"IFERROR(IF(Ricavi_Vendite=0,\"-\",Imposte[[#This Row],[Periodo corrente]]/Ricavi_Vendite),\"-\")","v":"-"},{"$f":"IFERROR(IF(Imposte[[#This Row],[Periodo precedente]]=Imposte[[#This Row],[Periodo corrente]],0,IF(Imposte[[#This Row],[Periodo corrente]]>Imposte[[#This Row],[Periodo precedente]],ABS((Imposte[[#This Row],[Periodo corrente]]/Imposte[[#This Row],[Periodo precedente]])-1),IF(AND(Imposte[[#This Row],[Periodo corrente]]<Imposte[[#This Row],[Periodo precedente]],Imposte[[#This Row],[Periodo precedente]]<0),-((Imposte[[#This Row],[Periodo corrente]]/Imposte[[#This Row],[Periodo precedente]])-1),(Imposte[[#This Row],[Periodo corrente]]/Imposte[[#This Row],[Periodo precedente]])-1))),\"-\")","v":{"v":0,"d":"0.00%"}},{"$f":"IFERROR(IF(Imposte[[#This Row],[Budget]]=Imposte[[#This Row],[Periodo corrente]],0,IF(Imposte[[#This Row],[Periodo corrente]]>Imposte[[#This Row],[Budget]],ABS((Imposte[[#This Row],[Periodo corrente]]/Imposte[[#This Row],[Budget]])-1),IF(AND(Imposte[[#This Row],[Periodo corrente]]<Imposte[[#This Row],[Budget]],Imposte[[#This Row],[Budget]]<0),-((Imposte[[#This Row],[Periodo corrente]]/Imposte[[#This Row],[Budget]])-1),(Imposte[[#This Row],[Periodo corrente]]/Imposte[[#This Row],[Budget]])-1))),\"-\")","v":{"v":0,"d":"0.00%"}}]
[null,"Totale imposte",null,{"$f":"SUBTOTAL(109,Imposte[Periodo precedente])","v":0},{"$f":"SUBTOTAL(109,Imposte[Budget])","v":0},{"$f":"SUBTOTAL(109,Imposte[Periodo corrente])","v":0},{"$f":"IFERROR(SUBTOTAL(109,Imposte[Periodo corrente come % delle vendite]),\"-\")","v":{"v":0,"d":"0.00%"}},{"$f":"SUBTOTAL(109,Imposte[Variazione % dal periodo precedente])","v":{"v":0,"d":"0.00%"}},{"$f":"SUBTOTAL(109,Imposte[Variazione % dal budget])","v":{"v":0,"d":"0.00%"}}]

{"sheet":"Categorie","index":5,"n_rows":8,"n_cols":2,"rows_kept":8}
[null,"Categorie"]
[null,"Ricavi delle vendite"]
[null,"Costo del venduto"]
[null,"Ricavi"]
[null,"Vendite e marketing"]
[null,"Ricerca e sviluppo"]
[null,"Generali e di amministrazione"]
[null,"Imposte"]